bitfinex-derivatives/quotes_BTCF0:USTF0_20251225
["timestamp","ask_amount","ask_price","bid_price","bid_amount"]
[1766630592132,0.0113844,87901.0,87890.0,0.057]
[1766630592332,0.00017062,87904.0,87890.0,0.087]
[1766630593937,0.00017062,87904.0,87890.0,0.0983857]
[1766630595940,0.00017062,87904.0,87890.0,0.087]
[1766630598740,0.00017062,87904.0,87891.0,0.0113856]
[1766630598945,0.013,87922.0,87891.0,0.03]
[1766630599141,0.0113827,87914.0,87891.0,0.03]
[1766630599452,0.00808,87924.0,87896.0,0.0113849]
[1766630599748,0.00808,87924.0,87898.0,0.0113847]
[1766630599956,0.00017062,87920.0,87898.0,0.0413847]
[1766630600344,0.0113827,87914.0,87898.0,0.0413847]
[1766630600552,0.0113827,87914.0,87898.0,0.03]
[1766630600742,0.0113827,87914.0,87898.0,0.0413847]
[1766630600943,0.0113822,87918.0,87898.0,0.03]
[1766630602249,0.0113822,87918.0,87899.0,0.0113846]
[1766630602451,0.0113822,87918.0,87899.0,0.0413846]
[1766630604652,0.0113825,87916.0,87899.0,0.0413846]
[1766630604948,0.00017062,87920.0,87899.0,0.03]
[1766630605956,0.0113827,87914.0,87899.0,0.03]
[1766630606657,0.0113823,87917.0,87900.0,0.0113844]
[1766630606850,0.0113823,87917.0,87901.0,0.03924]
[1766630607050,0.0113823,87917.0,87901.0,0.06924]
[1766630607741,0.0113826,87915.0,87901.0,0.06924]
[1766630607948,0.0113822,87918.0,87902.0,0.0113842]
[1766630608149,0.0113822,87918.0,87902.0,0.0413842]
[1766630608551,0.00017062,87920.0,87906.0,0.0113837]
[1766630608752,0.00017062,87920.0,87908.0,0.0113834]
[1766630608959,0.00017062,87920.0,87908.0,0.0413834]
[1766630609165,0.0113812,87925.0,87909.0,0.05104]
[1766630609352,0.0113812,87925.0,87909.0,0.08104]
[1766630609750,0.0113817,87922.0,87909.0,0.08104]
[1766630610153,0.0113821,87919.0,87909.0,0.08104]
[1766630610462,0.0113817,87922.0,87909.0,0.08104]
[1766630610756,0.0113819,87920.0,87909.0,0.08104]
[1766630610945,0.0113815,87923.0,87909.0,0.08104]
[1766630611149,0.0408361,87935.0,87922.0,0.0113816]
[1766630611350,0.01138,87935.0,87922.0,0.03]
[1766630611952,0.057,87940.0,87922.0,0.03]
[1766630612162,0.09800672,87940.0,87922.0,0.03017062]
[1766630612363,0.0113804,87932.0,87922.0,0.03017062]
[1766630612862,0.09800672,87940.0,87922.0,0.03017062]
[1766630614266,0.0113799,87936.0,87922.0,0.03017062]
[1766630615567,0.09800672,87940.0,87922.0,0.03017062]
[1766630615765,0.0408361,87939.0,87922.0,0.03017062]
[1766630616267,0.0113799,87936.0,87922.0,0.03017062]
[1766630616564,0.00017062,87940.0,87923.0,0.0113815]
[1766630616764,0.00017062,87940.0,87923.0,0.0413815]
[1766630617164,0.0113796,87938.0,87923.0,0.03]
[1766630617855,0.0113799,87936.0,87923.0,0.03]
[1766630618063,0.00017062,87940.0,87923.0,0.03]
[1766630618064,0.0113801,87934.0,87923.0,0.03]
[1766630623071,0.0113798,87937.0,87923.0,0.03]
[1766630624261,0.01138,87935.0,87923.0,0.03]
[1766630625774,0.0113803,87933.0,87923.0,0.03]
[1766630625974,0.0113804,87932.0,87923.0,0.03]
[1766630626171,0.0113811,87927.0,87900.0,0.0113844]
[1766630626379,0.0113811,87927.0,87901.0,1.5199443]
[1766630626566,0.0113811,87927.0,87901.0,1.5499443]
[1766630626766,0.0113811,87927.0,87913.0,0.0113828]
[1766630626966,0.0113811,87927.0,87914.0,0.057]
[1766630627162,0.0113811,87927.0,87914.0,0.087]
[1766630627567,0.00017062,87929.0,87914.0,0.087]
[1766630629179,0.0113809,87928.0,87914.0,0.087]
[1766630629378,0.00017062,87929.0,87914.0,0.087]
[1766630629780,0.0113811,87926.0,87914.0,0.087]
[1766630631983,0.0113811,87926.0,87914.0,0.03]
[1766630632176,0.0113811,87926.0,87915.0,0.04112]
[1766630632381,0.0113811,87926.0,87915.0,0.07112]
[1766630634693,0.00017062,87929.0,87915.0,0.07112]
[1766630635189,0.0113811,87926.0,87915.0,0.07112]
[1766630635379,0.00017062,87929.0,87915.0,0.07112]
[1766630635689,0.0957561,87949.0,87915.0,0.07112]
[1766630635888,0.0113803,87933.0,87915.0,0.07112]
[1766630636280,0.0113805,87931.0,87916.0,0.0113823]
[1766630636480,0.0113805,87931.0,87918.0,0.0113821]
[1766630636691,0.0113805,87931.0,87918.0,0.0413821]
[1766630637090,0.00017062,87933.0,87918.0,0.0413821]
[1766630637288,0.0113801,87934.0,87918.0,0.0413821]
[1766630637591,1e-07,87934.0,87918.0,0.0413821]
[1766630638182,0.0113802,87934.0,87918.0,0.0413821]
[1766630640686,0.0113804,87932.0,87918.0,0.03]
[1766630640993,0.0408361,87941.0,87918.0,0.03]
[1766630641194,0.0408361,87941.0,87921.0,0.0113817]
[1766630641384,0.06129674,87947.0,87921.0,0.0113817]
[1766630641385,0.0408361,87942.0,87921.0,0.0413817]
[1766630641585,0.0113799,87936.0,87921.0,0.0413817]
[1766630641783,0.06129674,87947.0,87921.0,0.03]
[1766630641784,0.0113796,87939.0,87921.0,0.03]
[1766630642588,0.0113796,87939.0,87923.0,0.0113814]
[1766630642787,0.0113796,87939.0,87924.0,0.03856]
[1766630642989,0.0113796,87939.0,87924.0,0.06856]
[1766630644595,0.0113797,87937.0,87924.0,0.06856]
[1766630647193,0.0408361,87943.0,87927.0,0.0113809]
[1766630647394,0.0408361,87943.0,87927.0,0.0413809]
[1766630647795,0.0408361,87938.0,87927.0,0.03]
[1766630647994,0.0522157,87938.0,87927.0,0.03]
[1766630649005,0.0113791,87942.0,87927.0,0.03]
[1766630650399,0.0113794,87939.0,87927.0,0.03]
[1766630650601,0.06129674,87948.0,87927.0,0.0413809]
[1766630650800,0.06129674,87949.0,87927.0,0.0413809]
[1766630651000,0.06129674,87945.0,87927.0,0.0413809]
[1766630651199,0.06129674,87946.0,87927.0,0.0413809]
[1766630651805,0.0113791,87942.0,87927.0,0.03]
[1766630652107,0.0113793,87940.0,87927.0,0.03]
[1766630653309,0.0113788,87944.0,87927.0,0.03]
[1766630654309,0.0113788,87944.0,87930.0,0.0113806]
[1766630654499,0.0113788,87944.0,87930.0,0.03]
[1766630655308,0.057,87950.0,87930.0,0.03]
[1766630655309,0.06129674,87949.0,87934.0,0.01138]
[1766630655609,0.03096778,87983.0,87934.0,0.0588]
[1766630655800,1.45144,87993.0,87950.0,0.00017062]
[1766630655801,0.011376,87966.0,87950.0,0.00017062]
[1766630656002,0.0113759,87967.0,87951.0,0.057]
[1766630656200,0.0113759,87967.0,87951.0,0.03]
[1766630656401,0.0113759,87967.0,87952.0,0.057]
[1766630656606,0.0113759,87967.0,87952.0,0.087]
[1766630656806,0.0113763,87964.0,87952.0,0.087]
[1766630657204,0.0113759,87967.0,87952.0,0.087]
[1766630658314,0.0113762,87964.0,87952.0,0.087]
[1766630658514,0.0113765,87962.0,87952.0,0.087]
[1766630659614,0.0113748,87976.0,87952.0,0.01]
[1766630659811,0.0113785,87947.0,87931.0,0.0113804]
[1766630660116,0.01138,87935.0,87925.0,1.45132]
[1766630660314,0.0113773,87956.0,87927.0,0.0113809]
[1766630660515,0.0113786,87946.0,87927.0,0.0413809]
[1766630660718,0.00017041,87945.0,87928.0,0.00017051]
[1766630660901,0.00017041,87945.0,87928.0,0.03017051]
[1766630661307,4.1e-07,87945.0,87932.0,0.0113803]
[1766630661606,4.1e-07,87945.0,87932.0,0.03]
[1766630662916,0.0113778,87952.0,87933.0,0.0113801]
[1766630663117,0.0113778,87952.0,87935.0,0.0113799]
[1766630663307,0.0113778,87952.0,87935.0,0.0413799]
[1766630663613,0.0113765,87962.0,87936.0,0.057]
[1766630663811,0.0113789,87944.0,87936.0,0.03]
[1766630664019,0.0113789,87944.0,87940.0,5.1e-07]
[1766630664318,0.0113789,87944.0,87940.0,1e-08]
[1766630673211,0.0113784,87947.0,87940.0,1e-08]
[1766630674916,0.0113787,87945.0,87940.0,1e-08]
[1766630677516,0.00017051,87951.0,87940.0,0.01137931]
[1766630677720,0.0113772,87957.0,87942.0,0.011379]
[1766630677921,0.0113772,87957.0,87942.0,0.041379]
[1766630678821,0.0113774,87955.0,87942.0,0.03]
[1766630679824,0.0113776,87953.0,87942.0,0.03]
[1766630680818,0.0113776,87953.0,87943.0,0.057]
[1766630681007,0.0113758,87967.0,87943.0,0.087]
[1766630681208,0.0113775,87954.0,87943.0,0.087]
[1766630682725,0.0113772,87956.0,87943.0,0.087]
[1766630683020,0.00017051,87957.0,87943.0,0.087]
[1766630683226,0.0113774,87955.0,87943.0,0.087]
[1766630684423,0.0113777,87953.0,87943.0,0.03]
[1766630684625,0.0113777,87953.0,87944.0,0.057]
[1766630684825,0.00017051,87957.0,87944.0,0.087]
[1766630685426,0.0113761,87965.0,87948.0,0.0113781]
[1766630685630,0.01436,87974.0,87948.0,0.0413781]
[1766630685831,0.01436,87974.0,87948.0,0.03]
[1766630687233,0.0113764,87963.0,87948.0,0.03]
[1766630688332,0.0113764,87963.0,87949.0,0.0113781]
[1766630688534,0.0113764,87963.0,87949.0,0.0413781]
[1766630689718,0.0113764,87963.0,87949.0,0.03]
[1766630692134,0.0113769,87959.0,87949.0,0.03]
[1766630692627,0.0113772,87957.0,87949.0,0.03]
[1766630692828,0.0113774,87955.0,87940.0,0.00017051]
[1766630693134,0.0113774,87955.0,87947.0,0.04064]
[1766630693432,0.0113774,87955.0,87947.0,0.07064]
[1766630693622,0.0113767,87960.0,87947.0,0.07064]
[1766630695834,0.01436,87974.0,87947.0,0.07064]
[1766630696135,0.0113756,87969.0,87947.0,0.07064]
[1766630697037,0.0113773,87956.0,87947.0,0.07064]
[1766630699531,0.0113775,87954.0,87947.0,0.07064]
[1766630699934,0.06131061,87971.0,87940.0,0.00017051]
[1766630700137,0.011379,87943.0,87940.0,0.01000001]
[1766630700331,0.0113777,87953.0,87917.0,0.0304963]
[1766630700637,0.0113779,87952.0,87924.0,0.0128213]
[1766630700942,0.011379,87943.0,87926.0,0.011381]
[1766630701122,0.0113786,87946.0,87930.0,0.0113805]
[1766630701328,0.00017051,87947.0,87930.0,0.0413805]
[1766630701528,0.00017051,87947.0,87934.0,0.01138]
[1766630701729,0.0113781,87950.0,87934.0,0.04138]
[1766630702734,0.0113777,87953.0,87938.0,0.0113795]
[1766630702942,0.06131061,87968.0,87940.0,0.0113792]
[1766630703140,0.0113747,87976.0,87941.0,0.03016]
[1766630703141,0.0113771,87958.0,87941.0,0.03016]
[1766630703329,0.0113771,87958.0,87941.0,0.06033051]
[1766630703529,0.0113773,87956.0,87941.0,0.06033051]
[1766630704343,0.0113769,87959.0,87942.0,0.011379]
[1766630704529,0.0113769,87959.0,87942.0,0.041379]
[1766630705432,0.05552,87969.0,87944.0,0.0113787]
[1766630705640,0.05552,87969.0,87944.0,0.0413787]
[1766630705824,0.05552,87969.0,87944.0,0.03]
[1766630705825,0.0113769,87959.0,87944.0,0.03]
[1766630706840,0.05552,87969.0,87944.0,0.03]
[1766630707238,0.0113768,87960.0,87944.0,0.03]
[1766630708140,0.05552,87969.0,87944.0,0.03]
[1766630708339,0.0113767,87961.0,87944.0,0.03]
[1766630708651,0.01108113,87961.0,87944.0,0.03]
[1766630709143,0.0113769,87959.0,87944.0,0.03]
[1766630710834,0.05552,87969.0,87945.0,0.057]
[1766630711029,0.05552,87969.0,87945.0,0.087]
[1766630711235,0.0113771,87957.0,87945.0,0.087]
[1766630711437,0.0113774,87955.0,87945.0,0.087]
[1766630713246,0.011377,87958.0,87945.0,0.087]
[1766630713848,0.0113773,87956.0,87945.0,0.087]
[1766630715749,0.05552,87969.0,87946.0,0.0113785]
[1766630715948,0.05552,87969.0,87946.0,0.0413785]
[1766630716648,0.05552,87969.0,87946.0,0.03]
[1766630716845,0.0113771,87958.0,87946.0,0.03]
[1766630717250,0.0113773,87956.0,87946.0,0.03]
[1766630717947,0.05552,87969.0,87946.0,0.03]
[1766630718249,0.05552,87969.0,87947.0,0.05452]
[1766630718552,0.0113765,87963.0,87947.0,0.08452]
[1766630718751,0.0113765,87963.0,87948.0,0.0113783]
[1766630718941,0.0113765,87963.0,87948.0,0.0413783]
[1766630722141,0.0113766,87961.0,87948.0,0.0413783]
[1766630722957,0.0113766,87961.0,87948.0,0.03]
[1766630723157,0.0113769,87959.0,87948.0,0.03]
[1766630725652,0.05552,87969.0,87948.0,0.03]
[1766630725855,0.011377,87959.0,87948.0,0.03]
[1766630731965,0.0113771,87957.0,87948.0,0.03]
[1766630734767,0.0113781,87950.0,87948.0,0.01]
[1766630734951,0.0113781,87950.0,87944.0,0.057]
[1766630735155,0.0113781,87950.0,87944.0,0.087]
[1766630735867,0.0113776,87953.0,87944.0,0.03]
[1766630738271,0.0113779,87951.0,87944.0,0.03]
[1766630738470,0.0113787,87945.0,87939.0,0.057]
[1766630738667,0.0113787,87945.0,87939.0,0.03]
[1766630738970,0.0122,87959.0,87939.0,0.03]
[1766630738971,0.0113783,87948.0,87939.0,0.03]
[1766630740272,0.0113779,87951.0,87939.0,0.03]
[1766630740869,0.0113782,87949.0,87939.0,0.03]
[1766630741070,0.00017051,87952.0,87939.0,0.03]
[1766630741372,0.0113792,87941.0,87933.0,0.03044]
[1766630741573,0.0113792,87941.0,87933.0,0.06044]
[1766630742162,0.011378,87951.0,87933.0,0.06044]
[1766630742362,0.0113791,87942.0,87933.0,0.06061051]
[1766630743365,0.011379,87943.0,87933.0,0.06061051]
[1766630749680,0.0113792,87941.0,87933.0,0.06061051]
[1766630750974,0.03768,87948.0,87923.0,0.05927473]
[1766630751174,0.0113809,87928.0,87923.0,0.06927473]
[1766630751386,0.0113809,87928.0,87919.0,0.037]
[1766630751678,0.0113805,87931.0,87919.0,0.067]
[1766630752774,0.0113808,87929.0,87919.0,0.067]
[1766630754974,0.0113811,87927.0,87919.0,0.067]
[1766630756783,0.0113813,87925.0,87919.0,0.067]
[1766630757086,0.0113814,87924.0,87919.0,0.067]
[1766630757599,0.00017061,87934.0,87919.0,0.067]
[1766630758004,0.00017061,87934.0,87919.0,0.03]
[1766630758702,0.0113814,87924.0,87919.0,0.03]
[1766630759100,0.01716,87936.0,87922.0,0.0113815]
[1766630759302,0.0113782,87949.0,87922.0,0.0413815]
[1766630759495,0.03264,87948.0,87922.0,0.0413815]
[1766630760108,0.00017061,87944.0,87922.0,0.0413815]
[1766630760290,0.0113798,87937.0,87922.0,0.0413815]
[1766630760495,0.0683798,87937.0,87922.0,0.0413815]
[1766630761508,0.057,87937.0,87922.0,0.0413815]
[1766630765010,0.0113798,87936.0,87922.0,0.03]
[1766630768111,0.057,87937.0,87922.0,0.03]
[1766630768112,0.0113801,87934.0,87922.0,0.03]
[1766630769807,0.0113804,87932.0,87922.0,0.03]
[1766630770708,0.057,87938.0,87922.0,0.03]
[1766630771307,0.0113805,87931.0,87922.0,0.03]
[1766630772311,0.0113802,87934.0,87922.0,0.03]
[1766630773220,0.0113804,87932.0,87922.0,0.03]
[1766630775516,0.0113806,87930.0,87922.0,0.03]
[1766630775912,0.057,87938.0,87922.0,0.03]
[1766630776106,0.0113803,87933.0,87922.0,0.03]
[1766630780210,0.0113805,87931.0,87922.0,0.03]
[1766630781019,0.07286012,87944.0,87922.0,0.03]
[1766630781020,0.055,87942.0,87922.0,0.03]
[1766630781210,0.055,87942.0,87922.0,0.0413815]
[1766630782219,0.0113796,87938.0,87922.0,0.0413815]
[1766630782617,0.0113792,87941.0,87925.0,0.0113812]
[1766630782926,0.0113798,87937.0,87925.0,0.03]
[1766630783114,0.01138,87935.0,87925.0,0.03]
[1766630783312,0.0113803,87933.0,87925.0,0.03]
[1766630783625,0.0113804,87932.0,87925.0,0.01]
[1766630786227,0.055,87942.0,87925.0,0.01]
[1766630786228,0.01138,87935.0,87925.0,0.01]
[1766630789017,0.0113797,87938.0,87925.0,0.01]
[1766630789814,0.0113799,87936.0,87925.0,0.01]
[1766630790313,0.0113801,87934.0,87925.0,0.01]
[1766630790925,0.0113798,87937.0,87925.0,0.01]
[1766630791114,0.01138,87935.0,87925.0,0.01]
[1766630791924,0.0113802,87933.0,87925.0,0.01]
[1766630798726,0.055,87942.0,87925.0,0.01]
[1766630798727,0.0113805,87931.0,87925.0,0.01]
[1766630803034,0.0113808,87929.0,87925.0,0.01]
[1766630803222,0.0113811,87927.0,87925.0,0.03]
[1766630804428,0.0113807,87930.0,87925.0,0.03]
[1766630804636,0.0113793,87941.0,87925.0,0.03]
[1766630806337,0.0113805,87931.0,87925.0,0.03]
[1766630806521,0.0113793,87941.0,87925.0,0.03]
[1766630807233,0.0113805,87931.0,87925.0,0.03]
[1766630808737,0.01092511,87931.0,87925.0,0.03]
[1766630810430,0.0113807,87929.0,87925.0,0.03]
[1766630812334,0.0113805,87932.0,87925.0,0.03]
[1766630816840,0.0113806,87930.0,87925.0,0.03]
[1766630821046,0.0113809,87928.0,87916.0,0.00017061]
[1766630821242,0.0113809,87928.0,87916.0,0.01017061]
[1766630822945,0.0113805,87931.0,87916.0,0.01017061]
[1766630830454,0.0113794,87940.0,87916.0,0.01017061]
[1766630830660,0.09598105,87942.0,87916.0,0.01017061]
[1766630832155,0.0113806,87930.0,87916.0,0.01017061]
[1766630838558,0.0113809,87928.0,87916.0,0.01017061]
[1766630846571,0.0113812,87926.0,87916.0,0.01017061]
[1766630876913,0.0113814,87924.0,87916.0,0.01017061]
[1766630878806,0.01138,87935.0,87916.0,0.01017061]
[1766630879004,0.0113813,87925.0,87916.0,0.01017061]
[1766630882111,0.011381,87928.0,87916.0,0.01017061]
[1766630884410,0.04098105,87937.0,87916.0,0.02155301]
[1766630884618,0.0113806,87930.0,87916.0,0.01017061]
[1766630889609,0.04098105,87940.0,87916.0,0.01017061]
[1766630889915,0.0113811,87927.0,87916.0,0.01017061]
[1766630891215,0.0113806,87930.0,87916.0,0.01017061]
[1766630900129,0.0113809,87928.0,87916.0,0.01017061]
[1766630901123,0.0113811,87926.0,87916.0,0.01017061]
[1766630917627,0.0113815,87923.0,87916.0,0.01017061]
[1766630918426,0.0113815,87923.0,87914.0,0.057]
[1766630918619,0.0113815,87923.0,87914.0,0.087]
[1766630919224,0.0113818,87921.0,87914.0,0.03]
[1766630921530,0.0113814,87924.0,87914.0,0.03]
[1766630921730,0.0113817,87922.0,87914.0,0.03]
[1766630921929,0.0113817,87922.0,87906.0,4.29e-06]
[1766630921930,0.0113828,87913.0,87906.0,4.29e-06]
[1766630922232,0.02032,87922.0,87906.0,0.03]
[1766630922426,0.02032,87922.0,87903.0,0.05706388]
[1766630922644,0.0113831,87911.0,87903.0,0.08706388]
[1766630923025,0.0113836,87907.0,87896.0,0.00483537]
[1766630923325,0.0113839,87905.0,87897.0,0.05696]
[1766630923532,0.0113835,87908.0,87897.0,0.08696]
[1766630923725,0.0113835,87908.0,87898.0,0.05696]
[1766630924034,0.0113834,87909.0,87898.0,0.08696]
[1766630924328,9.562e-05,87908.0,87898.0,0.03]
[1766630925328,0.0113836,87907.0,87898.0,0.03]
[1766630926131,9.562e-05,87908.0,87893.0,0.00017061]
[1766630926132,0.0113849,87897.0,87893.0,0.05696]
[1766630926336,0.0113849,87897.0,87893.0,0.01]
[1766630926525,0.0113845,87900.0,87890.0,0.05696]
[1766630926725,9.562e-05,87908.0,87890.0,0.06696]
[1766630927125,0.00026623,87908.0,87890.0,0.06713061]
[1766630928226,0.0113841,87904.0,87890.0,0.06713061]
[1766630930627,0.00026623,87908.0,87890.0,0.06713061]
[1766630930628,0.0113836,87907.0,87890.0,0.06713061]
[1766630935232,0.0113839,87905.0,87890.0,0.06713061]
[1766630942239,0.0113839,87905.0,87891.0,0.0113856]
[1766630942441,0.0113839,87905.0,87891.0,0.03]
[1766630945156,0.0113847,87899.0,87891.0,0.03]
[1766630946443,0.0113843,87902.0,87891.0,0.03]
[1766630946952,0.0113839,87905.0,87891.0,0.03]
[1766630948354,0.0113839,87905.0,87891.0,0.0413856]
[1766630949051,0.06131061,87918.0,87891.0,0.0413856]
[1766630949052,0.04098105,87925.0,87891.0,0.03]
[1766630949246,0.0113806,87931.0,87891.0,0.03]
[1766630949247,0.0113819,87920.0,87891.0,0.03]
[1766630949448,0.0113819,87920.0,87904.0,0.0113839]
[1766630949644,0.0113819,87920.0,87905.0,0.0542]
[1766630949857,0.0113819,87920.0,87905.0,0.0842]
[1766630950060,0.02548,87927.0,87905.0,0.0842]
[1766630951252,0.06646105,87927.0,87905.0,0.0842]
[1766630951459,0.00017061,87925.0,87905.0,0.0842]
[1766630952246,0.0113817,87922.0,87905.0,0.0842]
[1766630952452,0.0113817,87922.0,87906.0,0.0113837]
[1766630952669,0.0113817,87922.0,87906.0,0.0413837]
[1766630954371,0.00017061,87925.0,87906.0,0.03]
[1766630954577,0.0113808,87929.0,87906.0,0.03]
[1766630954772,0.04098105,87938.0,87911.0,0.011383]
[1766630955073,0.0113801,87934.0,87917.0,0.0113822]
[1766630955373,0.0113801,87934.0,87917.0,0.0413822]
[1766630955574,0.0113804,87932.0,87917.0,0.03017061]
[1766630964983,0.0113804,87932.0,87917.0,0.04155281]
[1766630965778,0.00017061,87934.0,87917.0,0.03017061]
[1766630965984,0.0113806,87931.0,87917.0,0.03017061]
[1766630968685,0.0113808,87929.0,87917.0,0.03017061]
[1766630969077,0.011381,87927.0,87917.0,0.03017061]
[1766630969585,0.011381,87927.0,87918.0,0.0472]
[1766630969888,0.011381,87927.0,87918.0,0.0772]
[1766630971079,0.011381,87927.0,87919.0,0.05696]
[1766630971278,0.0113815,87923.0,87909.0,0.0113833]
[1766630971480,0.0113815,87923.0,87910.0,0.05696]
[1766630971690,0.0113818,87921.0,87911.0,0.05696]
[1766630971887,0.0113818,87921.0,87911.0,0.08696]
[1766630972184,0.0113815,87924.0,87911.0,0.08696]
[1766630973385,0.0113817,87922.0,87911.0,0.08696]
[1766630973590,0.011382,87920.0,87911.0,0.03]
[1766630973790,0.011382,87920.0,87912.0,0.05696]
[1766630973982,0.011382,87920.0,87912.0,0.08696]
[1766630978695,0.0113816,87923.0,87912.0,0.08696]
[1766630985002,0.0113818,87921.0,87912.0,0.08696]
[1766630986605,0.04098105,87929.0,87912.0,0.08696]
[1766630988211,0.0113816,87923.0,87912.0,0.08696]
[1766630989908,0.0113818,87921.0,87912.0,0.08696]
[1766630990715,0.0113826,87915.0,87907.0,0.00017061]
[1766630990913,0.0113811,87927.0,87908.0,0.05696]
[1766630991113,0.0113811,87927.0,87908.0,0.08696]
[1766630991316,0.04098105,87929.0,87908.0,0.08696]
[1766630992111,0.0113818,87921.0,87908.0,0.08696]
[1766630994712,0.0113821,87919.0,87908.0,0.08696]
[1766630995012,0.0113817,87922.0,87908.0,0.08696]
[1766631001421,0.011382,87920.0,87908.0,0.08696]
[1766631002116,0.0113816,87923.0,87908.0,0.08696]
[1766631002615,0.0113816,87923.0,87908.0,0.0983434]
[1766631002818,0.0113812,87926.0,87908.0,0.0983434]
[1766631003013,6.1e-07,87932.0,87912.0,0.0113829]
[1766631003218,0.00017061,87934.0,87914.0,0.0113825]
[1766631003402,0.00017061,87934.0,87915.0,0.05696]
[1766631003606,0.00017061,87934.0,87915.0,0.08696]
[1766631004217,0.0113807,87930.0,87915.0,0.08696]
[1766631011017,0.011381,87928.0,87915.0,0.08696]
[1766631016426,0.0113812,87926.0,87915.0,0.08696]
[1766631016821,0.00017061,87934.0,87915.0,0.08696]
[1766631016822,0.0113817,87922.0,87915.0,0.08696]
[1766631017515,0.011382,87920.0,87916.0,0.05696]
[1766631017820,0.0113804,87932.0,87916.0,0.08696]
[1766631018521,0.0113817,87922.0,87917.0,0.05696]
[1766631018719,0.0113817,87922.0,87917.0,0.08696]
[1766631019721,0.0113804,87932.0,87917.0,0.08696]
[1766631020015,0.0113804,87932.0,87917.0,0.03]
[1766631020221,0.0113817,87922.0,87918.0,0.03]
[1766631020423,0.0113817,87922.0,87919.0,0.03]
[1766631020624,0.0113817,87922.0,87919.0,0.05696]
[1766631020823,0.0113817,87922.0,87919.0,0.08696]
[1766631021226,0.0113805,87931.0,87919.0,0.05696]
[1766631021522,0.0113805,87931.0,87919.0,0.08696]
[1766631022224,0.0113818,87921.0,87919.0,0.07696]
[1766631022423,0.0113805,87931.0,87919.0,0.07696]
[1766631022623,0.0113805,87931.0,87919.0,0.08696]
[1766631023125,0.0113818,87921.0,87918.0,0.05696]
[1766631023426,0.0113818,87921.0,87918.0,0.07696]
[1766631024428,0.0113818,87921.0,87918.0,0.05696]
[1766631024625,0.0113824,87916.0,87907.0,0.00017061]
[1766631024820,0.06147168,87928.0,87908.0,0.05696]
[1766631025020,0.06147168,87928.0,87908.0,0.08696]
[1766631025322,0.06147168,87927.0,87908.0,0.08696]
[1766631025827,0.06147168,87928.0,87908.0,0.08696]
[1766631026329,0.0113822,87918.0,87909.0,0.05696]
[1766631026529,0.0113822,87918.0,87909.0,0.08696]
[1766631027118,0.0113817,87922.0,87909.0,0.08696]
[1766631027325,0.06147168,87930.0,87909.0,0.08696]
[1766631027629,0.05696,87931.0,87912.0,0.0113829]
[1766631027928,0.05696,87931.0,87914.0,0.0113826]
[1766631028127,0.05696,87931.0,87915.0,0.0274]
[1766631028431,0.05696,87931.0,87915.0,0.0574]
[1766631029318,0.0113809,87928.0,87915.0,0.0574]
[1766631032833,0.0113812,87926.0,87915.0,0.0574]
[1766631033021,0.04098322,87933.0,87915.0,0.0574]
[1766631033226,0.01399322,87933.0,87915.0,0.0574]
[1766631033423,0.01030322,87933.0,87915.0,0.0574]
[1766631034329,0.0113806,87930.0,87915.0,0.0574]
[1766631034735,0.0113809,87928.0,87915.0,0.0574]
[1766631036522,0.01030322,87933.0,87915.0,0.0574]
[1766631036832,0.0113809,87929.0,87915.0,0.0574]
[1766631037029,0.01030322,87933.0,87915.0,0.0574]
[1766631037429,0.0113806,87930.0,87915.0,0.0574]
[1766631038226,0.0113806,87930.0,87916.0,0.0113824]
[1766631038435,0.0113806,87930.0,87916.0,0.0413824]
[1766631042039,0.0113806,87930.0,87916.0,0.03]
[1766631044342,0.0113809,87928.0,87916.0,0.03]
[1766631047839,0.0113806,87931.0,87916.0,0.03]
[1766631048342,0.00017061,87934.0,87918.0,0.0113821]
[1766631048543,0.00017061,87934.0,87918.0,0.0413821]
[1766631049035,0.0113804,87932.0,87918.0,0.03]
[1766631049236,0.0113806,87930.0,87918.0,0.03]
[1766631049439,0.00017061,87934.0,87918.0,0.03]
[1766631049639,0.00017061,87934.0,87920.0,0.0113818]
[1766631049840,0.00017061,87934.0,87920.0,0.0413818]
[1766631051834,5.1e-07,87936.0,87922.0,0.0113816]
[1766631052030,2.1e-07,87937.0,87923.0,0.05696]
[1766631052232,2.1e-07,87937.0,87923.0,0.08696]
[1766631053242,0.01137991,87937.0,87923.0,0.08696]
[1766631053644,2.1e-07,87937.0,87924.0,0.0113814]
[1766631053833,2.1e-07,87937.0,87924.0,0.0413814]
[1766631054434,2.1e-07,87937.0,87924.0,0.03]
[1766631059746,2.1e-07,87937.0,87925.0,0.0113812]
[1766631059950,2.1e-07,87937.0,87925.0,0.0413812]
[1766631061951,0.03572,87948.0,87930.0,0.0113806]
[1766631062151,0.03572,87948.0,87931.0,0.05696]
[1766631062338,0.03572,87948.0,87931.0,0.08696]
[1766631062648,0.0113786,87946.0,87931.0,0.08696]
[1766631063146,0.0113789,87943.0,87931.0,0.08696]
[1766631064043,0.0113792,87941.0,87931.0,0.08696]
[1766631064241,0.0113789,87944.0,87931.0,0.08696]
[1766631065048,0.00017061,87947.0,87932.0,0.0113803]
[1766631065239,0.00017061,87947.0,87932.0,0.0413803]
[1766631065950,0.00017061,87947.0,87934.0,0.01138]
[1766631066150,0.00017061,87947.0,87934.0,0.04138]
[1766631067753,0.00017061,87947.0,87934.0,0.03]
[1766631071152,0.0113785,87946.0,87934.0,0.03]
[1766631076858,0.00017061,87947.0,87935.0,0.0113799]
[1766631077150,0.00017061,87947.0,87935.0,0.0413799]
[1766631079254,0.00017061,87947.0,87937.0,0.0113796]
[1766631079556,0.00017061,87947.0,87937.0,0.03]
[1766631080655,0.00227395,87953.0,87938.0,0.0113796]
[1766631080857,0.00227395,87953.0,87939.0,0.0554]
[1766631081058,0.00227395,87953.0,87940.0,0.0113793]
[1766631081259,0.00227395,87953.0,87940.0,0.0413793]
[1766631081744,0.00227395,87953.0,87940.0,0.03]
[1766631081943,0.0113763,87964.0,87947.0,0.0113783]
[1766631082148,0.0113766,87962.0,87948.0,0.05696]
[1766631082358,0.0113766,87962.0,87948.0,0.08696]
[1766631083357,0.0113768,87960.0,87948.0,0.08696]
[1766631084860,0.0113772,87957.0,87948.0,0.08696]